bitfinex-derivatives/quotes_BTCF0:USTF0_20250129
["timestamp","ask_amount","ask_price","bid_price","bid_amount"]
[1738185009553,0.66720623,103960.0,103950.0,0.009]
[1738185010053,0.66820623,103960.0,103950.0,0.009]
[1738185010352,0.66820623,103960.0,103950.0,0.01849653]
[1738185010545,0.82804667,103960.0,103950.0,0.009]
[1738185010747,0.82804667,103960.0,103930.0,0.00014397]
[1738185010748,0.192428,103940.0,103930.0,0.00014397]
[1738185010951,0.192428,103940.0,103930.0,0.19258997]
[1738185011244,0.192428,103940.0,103930.0,0.00014397]
[1738185011447,0.553228,103940.0,103930.0,0.35243041]
[1738185011650,0.3608,103940.0,103930.0,0.35243041]
[1738185012249,0.192428,103940.0,103930.0,0.35168797]
[1738185012654,0.192428,103940.0,103930.0,0.71248797]
[1738185012848,0.200428,103940.0,103930.0,0.35268797]
[1738185013151,0.200428,103940.0,103930.0,0.51252841]
[1738185013551,0.009,103940.0,103930.0,0.97332841]
[1738185014345,0.19254397,103960.0,103930.0,0.78088441]
[1738185014544,0.19254397,103960.0,103950.0,0.192409]
[1738185014747,0.56289896,103960.0,103950.0,0.192409]
[1738185014947,0.192409,103950.0,103940.0,0.192421]
[1738185015148,0.553209,103950.0,103940.0,0.192421]
[1738185015455,0.192428,103940.0,103930.0,0.19358797]
[1738185016040,0.553228,103940.0,103930.0,0.00014397]
[1738185016555,0.71306844,103940.0,103930.0,0.00014397]
[1738185016756,0.72206844,103940.0,103930.0,0.00014397]
[1738185017558,0.565228,103940.0,103930.0,0.00014397]
[1738185018347,0.72506844,103940.0,103930.0,0.00014397]
[1738185018544,0.53264044,103940.0,103910.0,0.20192197]
[1738185018743,0.192465,103920.0,103910.0,0.20192197]
[1738185019250,0.52064044,103920.0,103900.0,0.00144332]
[1738185019446,0.720211,103930.0,103900.0,0.19394532]
[1738185019447,0.192483,103910.0,103900.0,0.19394532]
[1738185019654,0.192483,103910.0,103900.0,0.00144332]
[1738185019850,0.553283,103910.0,103900.0,0.00144332]
[1738185020054,0.192502,103900.0,103890.0,0.00983041]
[1738185020356,0.553302,103900.0,103890.0,0.00983041]
[1738185020853,0.553302,103900.0,103890.0,9.602e-05]
[1738185021953,0.881502,103900.0,103890.0,0.01409602]
[1738185022360,0.689,103900.0,103890.0,0.01409602]
[1738185022666,0.881502,103900.0,103890.0,0.01409602]
[1738185022961,0.5306,103900.0,103890.0,0.36645646]
[1738185023254,0.3618,103900.0,103890.0,0.36645646]
[1738185023652,0.001,103900.0,103890.0,0.72725646]
[1738185023962,0.001,103900.0,103890.0,0.83725646]
[1738185024149,0.001,103900.0,103890.0,0.83625646]
[1738185024346,0.001,103900.0,103890.0,1.15175646]
[1738185024554,0.00014397,103920.0,103890.0,0.95923646]
[1738185024762,0.00014397,103920.0,103910.0,0.35232344]
[1738185025061,0.00014397,103920.0,103910.0,0.192483]
[1738185025663,0.00214397,103920.0,103910.0,0.192483]
[1738185025866,0.00214397,103920.0,103910.0,0.232483]
[1738185026161,0.00014397,103920.0,103910.0,0.232483]
[1738185026360,0.00814397,103920.0,103910.0,0.75412344]
[1738185026561,9.7e-07,103920.0,103910.0,0.75412344]
[1738185026761,0.17230919,103940.0,103930.0,0.192446]
[1738185026953,0.17086537,103940.0,103930.0,0.91308644]
[1738185027149,0.17086537,103940.0,103930.0,1.43868644]
[1738185027359,0.17086537,103940.0,103930.0,1.59898644]
[1738185028666,0.17386537,103940.0,103930.0,1.59898644]
[1738185028871,0.00014397,103950.0,103940.0,0.192428]
[1738185029165,0.00014397,103950.0,103940.0,0.89306844]
[1738185029963,0.00314397,103950.0,103940.0,0.89406844]
[1738185030966,0.01114397,103950.0,103940.0,0.89506844]
[1738185032180,0.01114397,103950.0,103940.0,0.002]
[1738185032181,0.56435297,103950.0,103940.0,0.002]
[1738185032574,0.56435297,103950.0,103940.0,0.194428]
[1738185032575,0.20355297,103950.0,103940.0,0.194428]
[1738185032768,0.01114397,103950.0,103940.0,0.35426844]
[1738185032978,0.01114397,103950.0,103940.0,0.75506844]
[1738185034667,0.01114397,103950.0,103940.0,0.92066844]
[1738185037071,0.20355297,103950.0,103940.0,0.75506844]
[1738185037382,0.01114397,103950.0,103940.0,0.75506844]
[1738185037782,0.1608,103970.0,103960.0,0.192391]
[1738185037977,0.35930641,103980.0,103970.0,0.192372]
[1738185038181,0.72010641,103980.0,103970.0,0.35221244]
[1738185038386,0.35930641,103980.0,103970.0,0.192372]
[1738185038676,0.192388,103970.0,103960.0,0.192387]
[1738185039076,0.72425638,103980.0,103970.0,0.193372]
[1738185039475,0.36345638,103980.0,103970.0,0.193372]
[1738185040380,0.72425638,103980.0,103970.0,0.193372]
[1738185041075,0.72425638,103980.0,103970.0,0.001]
[1738185041873,0.72425638,103980.0,103970.0,0.002]
[1738185043878,0.72425638,103980.0,103970.0,0.194372]
[1738185045284,0.55875638,103980.0,103970.0,0.194372]
[1738185048081,0.00414397,103980.0,103970.0,0.83501244]
[1738185049383,0.00414397,103980.0,103970.0,0.675172]
[1738185049880,0.00414397,103980.0,103970.0,0.83501244]
[1738185052278,0.00514397,103980.0,103970.0,0.83501244]
[1738185052478,0.19749797,103980.0,103970.0,0.83501244]
[1738185052875,0.19749797,103980.0,103970.0,0.244372]
[1738185053082,0.19749797,103980.0,103970.0,0.194372]
[1738185053290,0.55829797,103980.0,103970.0,0.194372]
[1738185053890,0.19749797,103980.0,103970.0,0.194372]
[1738185054592,0.19749797,103980.0,103970.0,0.40421244]
[1738185056194,0.00514397,103980.0,103970.0,0.40421244]
[1738185056389,0.00514397,103980.0,103970.0,0.76501244]
[1738185058094,0.192325,104000.0,103990.0,0.192335]
[1738185058289,0.35614291,104010.0,104000.0,0.192317]
[1738185058492,0.65078205,104020.0,104010.0,0.192298]
[1738185058788,1.02721049,104020.0,103980.0,0.32338283]
[1738185058979,0.192335,104000.0,103990.0,0.19233]
[1738185059387,0.346635,104000.0,103990.0,0.19247397]
[1738185059585,0.707435,104000.0,103990.0,0.19247397]
[1738185059786,0.346635,104000.0,103990.0,0.19247397]
[1738185059983,0.707435,104000.0,103990.0,0.19247397]
[1738185060285,0.707435,104000.0,103990.0,0.19347397]
[1738185060487,0.86727544,104000.0,103990.0,0.00214397]
[1738185060892,0.86727544,104000.0,103990.0,0.00114397]
[1738185061481,0.86727544,104000.0,103970.0,0.22922883]
[1738185061482,0.192354,103980.0,103970.0,0.22922883]
[1738185061688,0.192372,103970.0,103960.0,0.28679131]
[1738185061881,0.71301244,103970.0,103960.0,0.28679131]
[1738185062489,0.71301244,103970.0,103960.0,0.03109131]
[1738185062686,0.81705244,103970.0,103960.0,0.03109131]
[1738185063099,0.81805244,103970.0,103960.0,0.03209131]
[1738185064589,0.81805244,103970.0,103950.0,0.00014397]
[1738185064590,0.93835083,103970.0,103950.0,0.00014397]
[1738185064898,0.71303144,103960.0,103950.0,0.00014397]
[1738185065201,0.879491,103960.0,103950.0,0.00014397]
[1738185065396,0.3608,103960.0,103950.0,0.35239341]
[1738185065582,0.553191,103960.0,103950.0,0.00014397]
[1738185065787,0.192391,103960.0,103950.0,0.19255297]
[1738185066192,0.553174,103970.0,103960.0,0.192391]
[1738185066395,0.009,103970.0,103960.0,0.76403144]
[1738185066602,0.009,103970.0,103960.0,0.35323144]
[1738185066791,0.00014397,103980.0,103960.0,0.52064044]
[1738185066992,0.00014397,103980.0,103970.0,0.35221244]
[1738185067199,0.19249797,103980.0,103970.0,0.192372]
[1738185068098,0.00014397,103980.0,103970.0,0.35221244]
[1738185069901,0.00614397,103980.0,103970.0,0.35221244]
[1738185070697,0.00614397,103980.0,103970.0,0.39221244]
[1738185070890,0.00614397,103980.0,103970.0,0.75301244]
[1738185071201,0.11789799,104000.0,103980.0,0.192354]
[1738185071398,0.048047,104070.0,103980.0,0.192354]
[1738185071399,0.00144218,104050.0,104040.0,0.192243]
[1738185071597,0.00144218,104050.0,104040.0,0.35208344]
[1738185071800,0.00144218,104050.0,104040.0,0.71288344]
[1738185071994,0.25621412,104060.0,104050.0,0.192224]
[1738185072299,0.25477194,104060.0,104050.0,0.71286444]
[1738185073497,0.25877194,104060.0,104050.0,0.71386444]
[1738185073702,0.45097794,104060.0,104050.0,0.001]
[1738185074003,0.25877194,104060.0,104050.0,0.35206444]
[1738185074312,0.26377194,104060.0,104050.0,0.71486444]
[1738185074994,0.25877194,104060.0,104050.0,0.72357372]
[1738185075196,0.26377194,104060.0,104050.0,0.72357372]
[1738185075398,0.45597794,104060.0,104050.0,0.36277372]
[1738185075592,0.45597794,104060.0,104050.0,0.01070928]
[1738185075794,0.26377194,104060.0,104050.0,0.3618]
[1738185075995,0.009,104060.0,104050.0,0.35306444]
[1738185076196,0.009,104060.0,104050.0,0.71386444]
[1738185080803,0.009,104060.0,104050.0,0.76386444]
[1738185081197,0.00014397,104070.0,104060.0,0.192206]
[1738185081420,0.00014397,104070.0,104060.0,1.20864644]
[1738185081713,0.00144158,104090.0,104080.0,0.192169]
[1738185081908,0.00144158,104090.0,104080.0,0.71280944]
[1738185082098,0.1,104100.0,104080.0,1.15128088]
[1738185082298,0.09855842,104100.0,104090.0,0.71279144]
[1738185082609,0.11341206,104120.0,104110.0,0.192114]
[1738185082911,0.11341206,104120.0,104110.0,0.71275444]
[1738185083422,0.31664438,104170.0,104120.0,0.3608]
[1738185083708,0.31664438,104170.0,104160.0,0.71266144]
[1738185083909,0.31664438,104170.0,104160.0,0.87250188]
[1738185084402,0.00144047,104170.0,104160.0,0.87250188]
[1738185085109,0.22567195,104180.0,104170.0,0.192003]
[1738185085305,0.22567195,104180.0,104170.0,0.71264344]
[1738185086000,0.41765695,104180.0,104170.0,0.52064044]
[1738185086400,0.41765695,104180.0,104170.0,0.001]
[1738185086600,0.192021,104160.0,104150.0,0.00014397]
[1738185086810,0.71266144,104160.0,104150.0,9.7e-07]
[1738185087005,0.86864944,104160.0,104110.0,1.29754613]
[1738185087204,0.86864944,104160.0,104110.0,0.72230613]
[1738185087205,0.192095,104120.0,104110.0,0.72230613]
[1738185087409,0.192095,104120.0,104110.0,0.53019613]
[1738185087612,0.192095,104120.0,104110.0,0.72230913]
[1738185088109,0.3608,104130.0,104100.0,0.15984044]
[1738185088314,0.192113,104110.0,104100.0,0.15998441]
[1738185088512,0.192113,104110.0,104100.0,0.52078441]
[1738185088702,0.192113,104110.0,104100.0,0.00014397]
[1738185088898,0.192113,104110.0,104100.0,0.55307597]
[1738185089111,0.40896597,104130.0,104100.0,0.52078441]
[1738185089412,0.192113,104110.0,104100.0,0.56266138]
[1738185089709,0.192113,104110.0,104100.0,0.72250182]
[1738185090104,0.194113,104110.0,104100.0,0.72250182]
[1738185090509,0.194113,104110.0,104100.0,0.56366138]
[1738185091222,0.194113,104110.0,104100.0,0.37153438]
[1738185091512,0.194113,104110.0,104100.0,0.01073438]
[1738185091816,0.554913,104110.0,104100.0,0.00114397]
[1738185092008,0.552913,104110.0,104100.0,0.00114397]
[1738185092210,0.553913,104110.0,104100.0,0.00114397]
[1738185092410,0.193113,104110.0,104100.0,0.00114397]
[1738185092711,0.556913,104110.0,104100.0,0.00514397]
[1738185093411,0.556913,104110.0,104100.0,0.00014397]
[1738185093715,0.196113,104110.0,104100.0,0.00014397]
[1738185093910,0.556913,104110.0,104100.0,0.00014397]
[1738185096521,0.192146,104090.0,104080.0,0.00144105]
[1738185096715,0.552946,104090.0,104080.0,0.00144105]
[1738185097511,0.552946,104090.0,104080.0,0.33360605]
[1738185097820,0.34589644,104110.0,104080.0,0.33360605]
[1738185097821,0.412829,104110.0,104080.0,0.50824105]
[1738185098114,0.192132,104090.0,104080.0,0.70038005]
[1738185098523,0.19226297,104100.0,104090.0,0.192132]
[1738185098815,0.19226297,104100.0,104090.0,0.302132]
[1738185099019,0.19226297,104100.0,104080.0,0.37724105]
[1738185099020,0.00014397,104100.0,104080.0,0.37724105]
[1738185099220,0.192131,104090.0,104080.0,0.76938505]
[1738185099619,0.192131,104090.0,104080.0,0.76538505]
[1738185099822,0.192131,104090.0,104080.0,0.75638505]
[1738185100410,0.192131,104090.0,104080.0,0.76038505]
[1738185101205,0.192131,104090.0,104080.0,0.75438505]
[1738185101411,0.193131,104090.0,104080.0,0.76838505]
[1738185103416,0.001,104090.0,104080.0,0.76838505]
[1738185103918,0.001,104090.0,104080.0,0.93118505]
[1738185105420,0.001,104090.0,104080.0,0.76838505]
[1738185105623,0.193131,104090.0,104080.0,0.21544105]
[1738185105922,0.193131,104090.0,104080.0,0.76839105]
[1738185107227,0.001,104090.0,104080.0,0.76839105]
[1738185107618,0.193131,104090.0,104080.0,0.76839105]
[1738185108924,0.193131,104090.0,104080.0,0.214]
[1738185109129,0.95076844,104090.0,104080.0,0.1174]
[1738185109423,0.95076844,104090.0,104070.0,0.00014397]
[1738185109424,0.19215,104080.0,104070.0,0.00014397]
[1738185109625,0.55295,104080.0,104070.0,0.19231197]
[1738185109925,0.55295,104080.0,104070.0,0.00014397]
[1738185110121,0.55295,104080.0,104060.0,0.17249838]
[1738185110122,0.192168,104070.0,104060.0,0.17249838]
[1738185110321,0.702268,104070.0,104060.0,0.17249838]
[1738185110916,0.552968,104070.0,104060.0,0.47468538]
[1738185111117,0.561958,104080.0,104070.0,0.193168]
[1738185111316,0.56210197,104080.0,104070.0,0.193168]
[1738185111525,0.56110197,104080.0,104070.0,0.193168]
[1738185111718,0.19230197,104080.0,104070.0,0.662968]
[1738185111913,0.19230197,104080.0,104070.0,0.242168]
[1738185112113,0.00014397,104080.0,104070.0,0.84880544]
[1738185112525,0.00214397,104080.0,104070.0,0.90978967]
[1738185113928,0.19329397,104080.0,104070.0,0.561968]
[1738185114232,0.19329397,104080.0,104070.0,0.009]
[1738185114233,0.19429397,104080.0,104070.0,0.009]
[1738185114623,0.34669397,104080.0,104070.0,0.009]
[1738185114814,0.34669397,104080.0,104070.0,0.005]
[1738185114815,0.86601564,104080.0,104070.0,0.005]
[1738185115019,0.50621564,104080.0,104070.0,0.014]
[1738185115431,0.34669397,104080.0,104070.0,0.0138056]
[1738185115621,0.34669397,104080.0,104070.0,0.009]
[1738185115822,0.192168,104070.0,104060.0,0.552981]
[1738185116021,0.192168,104070.0,104060.0,0.712981]
[1738185116831,0.34869997,104080.0,104070.0,0.192168]
[1738185117031,0.19529997,104080.0,104070.0,0.672968]
[1738185117235,0.00314397,104080.0,104070.0,0.83248967]
[1738185117417,0.01114397,104080.0,104070.0,0.83348967]
[1738185117822,0.20329397,104080.0,104070.0,0.83348967]
[1738185118031,0.00514397,104080.0,104070.0,0.83248967]
[1738185118231,0.00614397,104080.0,104070.0,0.83248967]
[1738185118534,0.00114397,104080.0,104070.0,0.98098967]
[1738185118726,0.00214397,104080.0,104070.0,0.98998967]
[1738185118926,0.31325394,104110.0,104070.0,0.79782167]
[1738185119124,0.50535694,104110.0,104100.0,0.552913]
[1738185119326,0.50535694,104110.0,104100.0,0.602913]
[1738185119531,0.50535694,104110.0,104100.0,0.552913]
[1738185120234,0.50535694,104110.0,104100.0,0.602913]
[1738185120731,0.50535694,104110.0,104100.0,0.552913]
[1738185121032,0.31325394,104110.0,104090.0,0.55307197]
[1738185121221,0.71243467,104100.0,104090.0,0.00014397]
[1738185121621,0.192113,104100.0,104090.0,0.23227497]
[1738185121830,0.192113,104100.0,104090.0,0.17264235]
[1738185122033,0.71243467,104100.0,104090.0,0.06209735]
[1738185122222,0.192131,104090.0,104080.0,0.28197984]
[1738185122418,0.86055267,104090.0,104080.0,0.14]
[1738185122625,0.701031,104090.0,104080.0,0.14]
[1738185122831,0.192131,104090.0,104080.0,0.33215]
[1738185123126,0.330421,104100.0,104090.0,0.192131]
[1738185123334,0.00214397,104100.0,104090.0,0.71245267]
[1738185123528,0.19425697,104100.0,104090.0,0.552931]
[1738185123830,0.196131,104090.0,104080.0,0.552938]
[1738185124128,0.004,104090.0,104080.0,0.702938]
[1738185124330,0.153,104130.0,104100.0,0.048025]
[1738185124533,0.15952167,104170.0,104140.0,0.192039]
[1738185124534,0.0014407,104150.0,104140.0,0.192039]
[1738185124732,0.632268,104180.0,104170.0,0.191984]
[1738185124926,0.4403,104180.0,104160.0,0.552791]
[1738185125237,0.191953,104190.0,104180.0,0.191965]
[1738185125433,0.191953,104190.0,104180.0,0.552765]
[1738185125735,0.1,104200.0,104190.0,0.191947]
[1738185125924,0.29207297,104200.0,104190.0,0.71226867]
[1738185126120,0.36565213,104200.0,104190.0,0.71226867]
[1738185126728,0.55758113,104200.0,104190.0,0.79811893]
[1738185127125,0.55758113,104200.0,104190.0,0.24537193]
[1738185127329,0.55758113,104200.0,104190.0,0.79811893]
[1738185127526,0.55758113,104200.0,104190.0,0.3658]
[1738185127727,0.55758113,104200.0,104190.0,0.005]
[1738185128034,0.55858113,104200.0,104190.0,0.014]
[1738185128536,0.55958113,104200.0,104190.0,0.005]
[1738185129237,0.55958113,104200.0,104180.0,0.55290297]
[1738185129238,0.191947,104190.0,104180.0,0.55290297]
[1738185129439,0.191947,104190.0,104180.0,0.56227127]
[1738185130532,0.192947,104190.0,104180.0,0.57127127]
[1738185130929,0.001,104190.0,104180.0,0.57127127]
[1738185131644,0.10014397,104200.0,104180.0,0.58931227]
[1738185131842,0.10014397,104200.0,104190.0,0.79811893]
[1738185133129,0.10514397,104200.0,104190.0,0.79811893]
[1738185134638,0.10014397,104200.0,104190.0,0.84311893]
[1738185134939,0.10114397,104200.0,104190.0,0.85211893]
[1738185135539,0.10114397,104200.0,104190.0,0.054]
[1738185135745,0.65388997,104200.0,104190.0,0.014]
[1738185135948,0.79318997,104200.0,104190.0,0.014]
[1738185136843,0.24044397,104200.0,104190.0,0.4948]
[1738185137035,0.10114397,104200.0,104190.0,0.686765]
[1738185137346,0.29473995,104230.0,104220.0,0.191911]
[1738185137641,0.15833995,104230.0,104220.0,0.552711]
[1738185137846,0.00143995,104230.0,104220.0,0.79808293]
[1738185138037,0.00143995,104230.0,104220.0,0.84808293]
[1738185138232,0.00143995,104230.0,104220.0,0.79808293]
[1738185138446,0.00014397,104240.0,104230.0,0.191892]
[1738185138753,0.00014397,104240.0,104230.0,0.93806393]
[1738185139344,0.19201797,104240.0,104230.0,0.57726393]
[1738185139537,0.191892,104230.0,104220.0,0.00967667]
[1738185139852,0.191948,104200.0,104190.0,0.00143971]
[1738185140046,0.7216,104200.0,104160.0,0.43738693]
[1738185140240,0.192003,104170.0,104160.0,0.43738693]
[1738185140436,0.192003,104170.0,104150.0,1.05017193]
[1738185140640,0.192021,104160.0,104150.0,0.4209]
[1738185140839,0.3608,104180.0,104150.0,0.6331]
[1738185141145,0.55294997,104170.0,104160.0,0.24537193]
[1738185141345,0.19214997,104170.0,104160.0,0.24537193]
[1738185141556,0.19214997,104170.0,104160.0,0.25337193]
[1738185141745,0.55294997,104170.0,104160.0,0.008]
[1738185142250,0.19214997,104170.0,104160.0,0.008]
[1738185142437,0.55294997,104170.0,104160.0,0.008]
[1738185143250,0.55294997,104170.0,104140.0,1.24185494]
[1738185143251,0.192021,104160.0,104140.0,1.24185494]
[1738185143453,0.192021,104160.0,104140.0,1.36185494]
[1738185143749,0.192021,104160.0,104140.0,1.37119829]
[1738185144051,0.55284,104150.0,104140.0,0.23929736]
[1738185144349,0.55284,104150.0,104140.0,0.00948732]
[1738185144750,0.19204,104150.0,104140.0,0.44691725]
[1738185144943,0.552825,104160.0,104150.0,0.19204]
[1738185145653,0.192025,104160.0,104150.0,0.19204]
[1738185146051,0.552825,104160.0,104150.0,0.19204]
[1738185146558,0.552825,104160.0,104150.0,0.35134822]
[1738185147146,0.19204,104150.0,104140.0,0.01448732]
[1738185147362,0.55284,104150.0,104140.0,0.17379554]
[1738185147551,0.55284,104150.0,104140.0,0.16879554]
[1738185148455,0.19204,104150.0,104140.0,0.17379554]
[1738185148647,0.19204,104150.0,104140.0,0.36585354]
[1738185149445,0.19204,104150.0,104140.0,0.37385354]
[1738185149963,0.55284,104150.0,104140.0,0.37385354]
[1738185150254,0.19204,104150.0,104140.0,0.37385354]
[1738185151054,0.192024,104160.0,104150.0,0.192033]
[1738185151354,0.192024,104160.0,104150.0,0.35134122]
[1738185151659,0.552824,104160.0,104150.0,0.192033]
[1738185152159,0.552824,104160.0,104150.0,0.35134122]
[1738185152461,0.19204,104150.0,104140.0,0.37384954]
[1738185153062,0.19204,104150.0,104140.0,0.36584954]
[1738185153258,0.19204,104150.0,104140.0,0.36084954]
[1738185153459,0.19204,104150.0,104140.0,0.47084954]
[1738185153767,0.19204,104150.0,104140.0,0.20154132]
[1738185153959,0.55284,104150.0,104140.0,0.00948732]
[1738185154159,0.55284,104150.0,104140.0,0.01448732]
[1738185154456,0.55284,104150.0,104140.0,0.02248732]
[1738185154865,0.19204,104150.0,104140.0,0.37385354]
[1738185155164,0.19204,104150.0,104140.0,0.36885354]
[1738185155347,0.19204,104150.0,104140.0,0.20954532]
[1738185155749,0.55284,104150.0,104140.0,0.20954532]
[1738185155955,0.55484,104150.0,104140.0,0.20154532]
[1738185156155,0.19404,104150.0,104140.0,0.20154532]
[1738185156357,0.55484,104150.0,104140.0,0.20154532]
[1738185156665,0.55484,104150.0,104140.0,0.00948732]
[1738185156855,0.55384,104150.0,104140.0,0.00948732]
[1738185157057,0.55584,104150.0,104140.0,0.01048732]
[1738185157455,0.55584,104150.0,104140.0,0.00948732]
[1738185157653,0.55484,104150.0,104140.0,0.00948732]
[1738185158267,0.55484,104150.0,104140.0,0.20154532]
[1738185158465,0.55584,104150.0,104140.0,0.20154532]
[1738185158972,0.55584,104150.0,104140.0,0.00948732]
[1738185159159,0.55484,104150.0,104140.0,0.00114397]
[1738185159355,0.84034,104150.0,104140.0,0.00114397]
[1738185159655,1.14514822,104150.0,104140.0,0.00014397]
[1738185159963,0.98684,104150.0,104140.0,0.00014397]
[1738185160369,0.98584,104150.0,104140.0,0.00114397]
[1738185160559,0.98584,104150.0,104140.0,0.19320197]
[1738185161160,0.83934,104150.0,104140.0,0.19320197]
[1738185161359,0.84034,104150.0,104140.0,0.19320197]
[1738185161566,0.84034,104150.0,104140.0,0.00114397]
[1738185162468,0.83934,104150.0,104140.0,0.00014397]
[1738185162671,0.84034,104150.0,104140.0,0.00114397]
[1738185163868,0.70144,104150.0,104140.0,0.00114397]
[1738185165371,0.86074822,104150.0,104140.0,0.00114397]
[1738185166268,0.70144,104150.0,104140.0,0.00114397]
[1738185167266,0.86074822,104150.0,104140.0,0.00114397]
[1738185167477,0.192114,104110.0,104100.0,0.2476]
[1738185167677,0.552914,104110.0,104100.0,0.3676]
[1738185167877,0.192114,104110.0,104100.0,0.3676]
[1738185168185,0.194723,104130.0,104100.0,0.52639621]
[1738185168379,0.192105,104120.0,104110.0,0.71221622]
[1738185168679,0.19222297,104130.0,104120.0,0.19208]
[1738185168883,0.19222297,104130.0,104120.0,0.55288]
[1738185170285,0.19222297,104130.0,104120.0,0.56088]
[1738185171775,0.19222297,104130.0,104120.0,0.20008]
[1738185171980,0.55302297,104130.0,104120.0,0.20008]
[1738185172180,0.55302297,104130.0,104120.0,0.20508]
[1738185172686,0.55302297,104130.0,104120.0,0.013]
[1738185172986,0.55302297,104130.0,104120.0,0.02267206]
[1738185173186,0.27789176,104130.0,104120.0,0.02267206]
[1738185175288,0.27789176,104130.0,104120.0,0.26476706]
[1738185175589,0.27789176,104130.0,104120.0,0.62556706]
[1738185178588,0.08581276,104130.0,104120.0,0.78487528]
[1738185178989,0.27788976,104130.0,104120.0,0.62556706]
[1738185179584,0.08581276,104130.0,104120.0,0.62556706]
[1738185179786,0.08581276,104130.0,104120.0,0.78487528]
[1738185179993,7.6e-07,104130.0,104120.0,0.78487528]
[1738185180189,0.16174821,104160.0,104120.0,0.85550939]
[1738185180493,0.192053,104150.0,104130.0,0.4953]
[1738185180693,0.192053,104150.0,104140.0,0.192058]
[1738185181093,0.192058,104140.0,104130.0,0.687365]
[1738185181392,0.74715964,104160.0,104140.0,0.192058]
[1738185181393,0.1141317,104150.0,104140.0,0.192058]
[1738185181592,0.29034564,104170.0,104140.0,0.192058]
[1738185181593,0.11092183,104170.0,104140.0,0.73010822]
[1738185181790,0.06608739,104170.0,104160.0,0.71212922]
[1738185181991,0.05159855,104170.0,104160.0,1.27292922]
[1738185182297,0.00766887,104170.0,104160.0,1.27292922]
[1738185183292,0.19744071,104190.0,104160.0,1.08090822]
[1738185183485,0.21368827,104200.0,104180.0,0.88090822]
[1738185183691,0.21368827,104200.0,104190.0,0.85117422]
[1738185183895,0.25385235,104210.0,104190.0,0.99670822]
[1738185184194,0.25385235,104210.0,104200.0,0.87136444]
[1738185184401,0.28349824,104220.0,104210.0,0.191929]
[1738185184600,0.28364221,104220.0,104210.0,0.71203722]
[1738185184899,0.47555321,104220.0,104210.0,0.35123722]
[1738185185694,0.83635321,104220.0,104210.0,0.001]
[1738185185899,0.55429505,104220.0,104210.0,0.001]
[1738185187093,0.55429505,104220.0,104210.0,0.002]
[1738185187799,0.3608,104260.0,104210.0,0.75403722]
[1738185187987,0.4025,104290.0,104250.0,0.56807222]
[1738185188194,0.59429,104290.0,104270.0,0.35112022]
[1738185188498,0.4025,104290.0,104270.0,0.15930822]
[1738185188689,0.594288,104290.0,104270.0,0.71191822]
[1738185188892,0.594288,104290.0,104270.0,0.52010822]
[1738185189098,0.594288,104290.0,104270.0,0.52025219]
[1738185189289,0.1334,104290.0,104280.0,0.1918]
[1738185189492,0.4942,104290.0,104270.0,0.16045219]
[1738185189799,0.71190822,104280.0,104270.0,0.00014397]
[1738185190096,0.71190822,104280.0,104270.0,0.00114397]
[1738185190403,0.191856,104250.0,104240.0,0.552669]
[1738185190606,0.191856,104250.0,104230.0,0.79270822]
[1738185190607,0.191856,104250.0,104230.0,0.6334]
[1738185190798,0.191874,104240.0,104230.0,0.191881]
[1738185191502,0.191892,104230.0,104220.0,0.94168491]
[1738185191798,0.191892,104230.0,104220.0,0.22966869]
[1738185192198,0.552692,104230.0,104220.0,0.22822961]
[1738185192800,0.552692,104230.0,104220.0,0.23622961]
[1738185193509,0.14384397,104250.0,104220.0,0.59002961]
[1738185193702,0.00014397,104250.0,104240.0,0.552674]
[1738185193892,0.00143941,104270.0,104260.0,0.191837]
[1738185194099,0.00143941,104270.0,104260.0,1.113437]
[1738185194399,0.00023534,104280.0,104270.0,0.191819]
[1738185194604,0.00023534,104280.0,104270.0,1.00798201]
[1738185195199,0.00023534,104280.0,104270.0,1.01798201]
[1738185195608,0.191819,104270.0,104260.0,0.01065517]
[1738185195798,0.552619,104270.0,104260.0,0.20249217]
[1738185195999,0.552619,104270.0,104260.0,0.00965517]
[1738185196706,0.553619,104270.0,104260.0,0.01065517]
[1738185197402,0.553619,104270.0,104260.0,0.20249217]
[1738185197606,0.553619,104270.0,104260.0,0.00114397]
[1738185205313,0.047964,104250.0,104220.0,0.83583631]
[1738185205514,0.3608,104250.0,104220.0,0.79191631]
[1738185205710,0.191877,104240.0,104230.0,0.191881]
[1738185206504,0.191877,104240.0,104230.0,0.48724401]
[1738185206911,0.36094397,104250.0,104240.0,0.191874]
[1738185206912,0.55280797,104250.0,104240.0,0.191874]
[1738185207514,0.19200797,104250.0,104240.0,0.191874]
[1738185208710,0.19200797,104250.0,104240.0,0.199874]
[1738185208906,0.19200797,104250.0,104240.0,0.254874]
[1738185209410,0.19200797,104250.0,104240.0,0.204874]
[1738185209721,0.19200797,104250.0,104240.0,0.250874]
[1738185210021,0.19500797,104250.0,104240.0,0.242874]
[1738185210214,0.19499997,104250.0,104240.0,0.603674]
[1738185210515,0.19199997,104250.0,104240.0,0.254874]
[1738185211220,0.19199997,104250.0,104240.0,0.204874]
[1738185211417,0.19199997,104250.0,104240.0,0.013]
[1738185211807,0.55279997,104250.0,104240.0,0.013]
[1738185212014,0.55279997,104250.0,104240.0,0.005]
[1738185212015,0.84159997,104250.0,104240.0,0.005]
[1738185212323,0.94523997,104250.0,104240.0,0.005]
[1738185212518,0.39258397,104250.0,104230.0,0.191885]
[1738185212817,0.99320397,104250.0,104240.0,0.001]
[1738185213018,0.84950397,104250.0,104240.0,0.001]
[1738185213218,0.84750397,104250.0,104240.0,0.001]
[1738185213421,0.84950397,104250.0,104240.0,0.001]
[1738185214814,0.84950397,104250.0,104220.0,0.3619728]
[1738185214815,0.65764797,104250.0,104220.0,0.3619728]
[1738185215024,0.191892,104230.0,104220.0,0.1700748]
[1738185215317,0.191892,104230.0,104220.0,0.4119858]
[1738185215517,0.191892,104230.0,104220.0,0.7727858]
[1738185216112,0.191892,104230.0,104220.0,1.00087144]
[1738185216409,0.191892,104230.0,104220.0,0.64007144]
[1738185216611,0.191892,104230.0,104220.0,0.39816044]
[1738185216919,0.193892,104230.0,104220.0,0.59007144]
[1738185217106,0.193892,104230.0,104220.0,0.43816044]
[1738185217312,0.193892,104230.0,104220.0,0.59007144]
[1738185217512,0.193892,104230.0,104220.0,0.59507144]
[1738185218319,0.191892,104230.0,104220.0,0.63807144]